[Event "Titled Tuesday Blitz March 15 Late 2022"]
[White "Jaferian, Koosha"]
[Black "Morris-Suzuki, Sophie"]
[WhiteFideId "12507440"]
[BlackFideId "30922615"]
[WhiteElo "2030"]
[BlackElo "2477"]
[Result "0-1"]
[Round "11"]
[TimeControl "180+1"]
[Date "2022.03.15"]
[WhiteClock "0:00:03"]
[BlackClock "0:00:08"]

1. Nf3 {[%clk 0:03:00]}  c5 {[%clk 0:03:00]} 2. b3 {[%clk 0:03:00]}  b6 {[%clk 0:03:00]} 3. g3 {[%clk 0:03:00]}  Bb7 {[%clk 0:03:00]} 4. Bg2 {[%clk 0:03:01]}  e6 {[%clk 0:03:00]} 5. Bb2 {[%clk 0:03:02]}  d6 {[%clk 0:03:00]} 6. c4 {[%clk 0:03:00]}  Nf6 {[%clk 0:03:00]} 7. O-O {[%clk 0:03:01]}  Be7 {[%clk 0:03:00]} 8. d4 {[%clk 0:03:01]}  cxd4 {[%clk 0:03:00]} 9. Nxd4 {[%clk 0:03:02]}  Bxg2 {[%clk 0:03:00]} 10. Kxg2 {[%clk 0:03:03]}  Qc8 {[%clk 0:03:00]} 11. Nc3 {[%clk 0:03:02]}  Qb7+ {[%clk 0:03:00]} 12. f3 {[%clk 0:03:03]}  a6 {[%clk 0:03:01]} 13. e4 {[%clk 0:03:03]}  Nbd7 {[%clk 0:03:01]} 14. Qe2 {[%clk 0:03:00]}  O-O {[%clk 0:03:02]} 15. f4 {[%clk 0:02:53]}  Rfe8 {[%clk 0:02:52]} 16. g4 {[%clk 0:02:53]}  g6 {[%clk 0:02:44]} 17. g5 {[%clk 0:02:44]}  Nh5 {[%clk 0:02:43]} 18. h4 {[%clk 0:02:36]}  Bf8 {[%clk 0:02:42]} 19. Rad1 {[%clk 0:02:16]}  e5 {[%clk 0:02:38]} 20. Nd5 {[%clk 0:01:49]}  exd4 {[%clk 0:02:32]} 21. Bxd4 {[%clk 0:01:50]}  Bg7 {[%clk 0:02:18]} 22. Qb2 {[%clk 0:01:20]}  Rxe4 {[%clk 0:02:11]} 23. Bxg7 {[%clk 0:01:20]}  Nxg7 {[%clk 0:02:10]} 24. Qa3 {[%clk 0:01:10]}  Nf5 {[%clk 0:01:41]} 25. Kh3 {[%clk 0:01:05]}  Rae8 {[%clk 0:01:34]} 26. Qa4 {[%clk 0:01:00]}  b5 {[%clk 0:01:22]} 27. Qb4 {[%clk 0:00:59]}  Re3+ {[%clk 0:01:05]} 28. Kh2 {[%clk 0:00:48]}  Re2+ {[%clk 0:01:06]} 29. Kg1 {[%clk 0:00:46]}  Qa7+ {[%clk 0:01:04]} 30. Kh1 {[%clk 0:00:47]}  Rxa2 {[%clk 0:00:45]} 31. Qc3 {[%clk 0:00:37]}  Ree2 {[%clk 0:00:29]} 32. Qh3 {[%clk 0:00:35]}  Qc5 {[%clk 0:00:18]} 33. Nc3 {[%clk 0:00:31]}  Rh2+ {[%clk 0:00:12]} 34. Qxh2 {[%clk 0:00:31]}  Rxh2+ {[%clk 0:00:12]} 35. Kxh2 {[%clk 0:00:32]}  bxc4 {[%clk 0:00:12]} 36. Ne4 {[%clk 0:00:30]}  Qe3 {[%clk 0:00:10]} 37. Rfe1 {[%clk 0:00:25]}  Qxf4+ {[%clk 0:00:10]} 38. Kg1 {[%clk 0:00:24]}  Qg4+ {[%clk 0:00:08]} 39. Kf2 {[%clk 0:00:19]}  Qxh4+ {[%clk 0:00:08]} 40. Kg1 {[%clk 0:00:19]}  Qg4+ {[%clk 0:00:07]} 41. Kf2 {[%clk 0:00:20]}  Qf4+ {[%clk 0:00:07]} 42. Kg1 {[%clk 0:00:20]}  cxb3 {[%clk 0:00:06]} 43. Nc3 {[%clk 0:00:14]}  Qxg5+ {[%clk 0:00:06]} 44. Kf2 {[%clk 0:00:15]}  Qf4+ {[%clk 0:00:06]} 45. Ke2 {[%clk 0:00:15]}  Qb4 {[%clk 0:00:06]} 46. Nd5 {[%clk 0:00:12]}  Qc4+ {[%clk 0:00:06]} 47. Kf2 {[%clk 0:00:12]}  b2 {[%clk 0:00:06]} 48. Ne3 {[%clk 0:00:03]}  Qc5 {[%clk 0:00:06]} 49. Rb1 {[%clk 0:00:03]}  Ne5 {[%clk 0:00:06]} 50. Rxb2 {[%clk 0:00:01]}  Nd3+ {[%clk 0:00:06]} 51. Ke2 {[%clk 0:00:01]}  Qxe3+ {[%clk 0:00:06]} 52. Kd1 {[%clk 0:00:01]}  Qxe1+ {[%clk 0:00:07]} 53. Kc2 {[%clk 0:00:02]}  Nxb2 {[%clk 0:00:07]} 54. Kxb2 {[%clk 0:00:03]}  Qb4+ {[%clk 0:00:08]} 0-1


[Site "https://www.chess.com"]

[Event "Titled Tuesday Blitz March 15 Late 2022"]
[White "Janaszak, Dawid"]
[Black "Lewtak, Damian"]
[WhiteFideId "1119206"]
[BlackFideId "1141724"]
[WhiteElo "2199"]
[BlackElo "2362"]
[Result "1/2-1/2"]
[Round "11"]
[TimeControl "180+1"]
[Date "2022.03.16"]
[WhiteClock "0:00:11"]
[BlackClock "0:00:41"]

1. e4 {[%clk 0:02:58]}  c5 {[%clk 0:03:00]} 2. Nc3 {[%clk 0:02:58]}  d6 {[%clk 0:03:00]} 3. f4 {[%clk 0:02:57]}  Nc6 {[%clk 0:02:59]} 4. Nf3 {[%clk 0:02:57]}  Bg4 {[%clk 0:02:57]} 5. Bc4 {[%clk 0:02:55]}  e6 {[%clk 0:02:57]} 6. O-O {[%clk 0:02:54]}  Nf6 {[%clk 0:02:57]} 7. h3 {[%clk 0:02:54]}  Bxf3 {[%clk 0:02:57]} 8. Qxf3 {[%clk 0:02:54]}  Nd4 {[%clk 0:02:57]} 9. Qd1 {[%clk 0:02:54]}  d5 {[%clk 0:02:57]} 10. exd5 {[%clk 0:02:52]}  exd5 {[%clk 0:02:58]} 11. Be2 {[%clk 0:02:29]}  Be7 {[%clk 0:02:57]} 12. d3 {[%clk 0:02:18]}  O-O {[%clk 0:02:56]} 13. Bf3 {[%clk 0:02:17]}  Qd7 {[%clk 0:02:50]} 14. g4 {[%clk 0:02:10]}  Nxf3+ {[%clk 0:02:48]} 15. Qxf3 {[%clk 0:02:11]}  d4 {[%clk 0:02:44]} 16. Ne4 {[%clk 0:02:10]}  Nxe4 {[%clk 0:02:44]} 17. dxe4 {[%clk 0:02:10]}  c4 {[%clk 0:02:41]} 18. e5 {[%clk 0:02:09]}  Bc5 {[%clk 0:02:40]} 19. Kg2 {[%clk 0:02:06]}  d3 {[%clk 0:02:40]} 20. cxd3 {[%clk 0:02:06]}  Qxd3 {[%clk 0:02:39]} 21. Rd1 {[%clk 0:01:59]}  Qc2+ {[%clk 0:02:30]} 22. Rd2 {[%clk 0:01:53]}  Qg6 {[%clk 0:02:30]} 23. f5 {[%clk 0:01:47]}  Qb6 {[%clk 0:02:29]} 24. f6 {[%clk 0:01:36]}  Rfd8 {[%clk 0:02:27]} 25. Rc2 {[%clk 0:01:13]}  Bd4 {[%clk 0:02:21]} 26. Bf4 {[%clk 0:01:06]}  gxf6 {[%clk 0:02:11]} 27. exf6 {[%clk 0:00:56]}  Qxf6 {[%clk 0:02:06]} 28. Rxc4 {[%clk 0:00:49]}  Bxb2 {[%clk 0:02:04]} 29. Rb1 {[%clk 0:00:49]}  Rac8 {[%clk 0:01:45]} 30. g5 {[%clk 0:00:30]}  Qb6 {[%clk 0:01:16]} 31. Rxc8 {[%clk 0:00:18]}  Rxc8 {[%clk 0:01:17]} 32. Qe4 {[%clk 0:00:18]}  Qd4 {[%clk 0:01:00]} 33. Qxd4 {[%clk 0:00:17]}  Bxd4 {[%clk 0:01:01]} 34. Rxb7 {[%clk 0:00:18]}  Rc2+ {[%clk 0:01:02]} 35. Kf3 {[%clk 0:00:17]}  Rxa2 {[%clk 0:01:02]} 36. Ke4 {[%clk 0:00:16]}  Ra4 {[%clk 0:01:00]} 37. Kf5 {[%clk 0:00:13]}  Kg7 {[%clk 0:00:54]} 38. h4 {[%clk 0:00:12]}  Ra5+ {[%clk 0:00:54]} 39. Kg4 {[%clk 0:00:12]}  Be5 {[%clk 0:00:50]} 40. Be3 {[%clk 0:00:11]}  Ra4+ {[%clk 0:00:40]} 41. Kf5 {[%clk 0:00:10]}  Ra5 {[%clk 0:00:41]} 42. Kg4 {[%clk 0:00:10]}  Ra4+ {[%clk 0:00:40]} 43. Kf5 {[%clk 0:00:10]}  Ra5 {[%clk 0:00:41]} 44. Kg4 {[%clk 0:00:11]} 1/2-1/2


[Site "https://www.chess.com"]

[Event "Titled Tuesday Blitz March 15 Late 2022"]
[White "Janturin, Artur"]
[Black "Hirneise, Jens"]
[WhiteFideId "4130022"]
[BlackFideId "24614734"]
[WhiteElo "2378"]
[BlackElo "2359"]
[Result "0-1"]
[Round "11"]
[TimeControl "180+1"]
[Date "2022.03.16"]
[WhiteClock "0:00:04"]
[BlackClock "0:01:04"]

1. b3 {[%clk 0:02:59]}  d5 {[%clk 0:02:56]} 2. Bb2 {[%clk 0:02:59]}  Bf5 {[%clk 0:02:56]} 3. e3 {[%clk 0:02:57]}  e6 {[%clk 0:02:56]} 4. g4 {[%clk 0:02:55]}  Bg6 {[%clk 0:02:54]} 5. h4 {[%clk 0:02:56]}  h5 {[%clk 0:02:54]} 6. g5 {[%clk 0:02:55]}  Ne7 {[%clk 0:02:52]} 7. Bg2 {[%clk 0:02:54]}  c5 {[%clk 0:02:47]} 8. d3 {[%clk 0:02:53]}  Nbc6 {[%clk 0:02:42]} 9. Nd2 {[%clk 0:02:52]}  Qc7 {[%clk 0:02:34]} 10. Ne2 {[%clk 0:02:50]}  Bf5 {[%clk 0:02:28]} 11. Ng3 {[%clk 0:02:46]}  Bg4 {[%clk 0:02:23]} 12. Bf3 {[%clk 0:02:42]}  Ne5 {[%clk 0:02:11]} 13. Bxg4 {[%clk 0:02:18]}  hxg4 {[%clk 0:02:08]} 14. Rc1 {[%clk 0:01:15]}  Nf5 {[%clk 0:02:02]} 15. Bxe5 {[%clk 0:01:10]}  Qxe5 {[%clk 0:01:59]} 16. Qxg4 {[%clk 0:01:10]}  Bd6 {[%clk 0:01:51]} 17. Nxf5 {[%clk 0:01:01]}  exf5 {[%clk 0:01:50]} 18. Qf3 {[%clk 0:00:58]}  O-O-O {[%clk 0:01:43]} 19. h5 {[%clk 0:00:51]}  f4 {[%clk 0:01:36]} 20. e4 {[%clk 0:00:50]}  f5 {[%clk 0:01:32]} 21. gxf6 {[%clk 0:00:48]}  gxf6 {[%clk 0:01:32]} 22. Kf1 {[%clk 0:00:43]}  Qb2 {[%clk 0:01:26]} 23. Rd1 {[%clk 0:00:39]}  Qxc2 {[%clk 0:01:25]} 24. exd5 {[%clk 0:00:40]}  Be5 {[%clk 0:01:23]} 25. Nc4 {[%clk 0:00:28]}  Rxd5 {[%clk 0:01:20]} 26. Qxd5 {[%clk 0:00:25]}  Qxd1+ {[%clk 0:01:19]} 27. Kg2 {[%clk 0:00:25]}  f3+ {[%clk 0:01:04]} 28. Qxf3 {[%clk 0:00:12]}  Rg8+ {[%clk 0:01:04]} 29. Kh3 {[%clk 0:00:04]}  Qxf3+ {[%clk 0:01:04]} 0-1


[Site "https://www.chess.com"]

[Event "Titled Tuesday Blitz March 15 Late 2022"]
[White "Jeet, Jain"]
[Black "Risteski, Emil"]
[WhiteFideId "5073022"]
[BlackFideId "15005267"]
[WhiteElo "2085"]
[BlackElo "2070"]
[Result "0-1"]
[Round "11"]
[TimeControl "180+1"]
[Date "2022.03.15"]
[WhiteClock "0:00:42"]
[BlackClock "0:00:57"]

1. d4 {[%clk 0:03:00]}  d6 {[%clk 0:02:58]} 2. Nf3 {[%clk 0:02:59]}  Nd7 {[%clk 0:02:56]} 3. Bf4 {[%clk 0:02:52]}  g6 {[%clk 0:02:37]} 4. e3 {[%clk 0:02:46]}  Bg7 {[%clk 0:02:35]} 5. h3 {[%clk 0:02:46]}  e5 {[%clk 0:02:33]} 6. Bh2 {[%clk 0:02:42]}  Nh6 {[%clk 0:02:28]} 7. c4 {[%clk 0:02:39]}  O-O {[%clk 0:02:28]} 8. Nc3 {[%clk 0:02:39]}  f5 {[%clk 0:02:25]} 9. dxe5 {[%clk 0:02:21]}  dxe5 {[%clk 0:02:25]} 10. e4 {[%clk 0:02:21]}  f4 {[%clk 0:02:24]} 11. g3 {[%clk 0:02:12]}  c6 {[%clk 0:02:07]} 12. Qd2 {[%clk 0:02:08]}  fxg3 {[%clk 0:02:03]} 13. Bxg3 {[%clk 0:02:01]}  Rxf3 {[%clk 0:02:01]} 14. Be2 {[%clk 0:01:59]}  Rf8 {[%clk 0:01:59]} 15. O-O-O {[%clk 0:01:59]}  Nf7 {[%clk 0:01:52]} 16. Kb1 {[%clk 0:01:59]}  Qe7 {[%clk 0:01:50]} 17. h4 {[%clk 0:01:58]}  Nc5 {[%clk 0:01:48]} 18. h5 {[%clk 0:01:58]}  g5 {[%clk 0:01:46]} 19. Qe3 {[%clk 0:01:51]}  h6 {[%clk 0:01:41]} 20. f3 {[%clk 0:01:49]}  Ne6 {[%clk 0:01:40]} 21. Bf2 {[%clk 0:01:47]}  Nd4 {[%clk 0:01:40]} 22. Bf1 {[%clk 0:01:47]}  Be6 {[%clk 0:01:39]} 23. b3 {[%clk 0:01:44]}  a5 {[%clk 0:01:38]} 24. Rg1 {[%clk 0:01:36]}  a4 {[%clk 0:01:36]} 25. Nxa4 {[%clk 0:01:35]}  Rxa4 {[%clk 0:01:32]} 26. bxa4 {[%clk 0:01:36]}  Qb4+ {[%clk 0:01:31]} 27. Kc1 {[%clk 0:01:32]}  Qxa4 {[%clk 0:01:25]} 28. Rd2 {[%clk 0:01:27]}  Bxc4 {[%clk 0:01:22]} 29. Qc3 {[%clk 0:01:24]}  Nd6 {[%clk 0:01:20]} 30. Bxd4 {[%clk 0:00:43]}  exd4 {[%clk 0:01:18]} 31. Rxd4 {[%clk 0:00:43]}  Bxd4 {[%clk 0:01:09]} 32. Qxd4 {[%clk 0:00:44]}  Qa3+ {[%clk 0:01:09]} 33. Kd1 {[%clk 0:00:43]}  Qxf3+ {[%clk 0:01:04]} 34. Kc1 {[%clk 0:00:43]}  Qf4+ {[%clk 0:00:58]} 35. Kb2 {[%clk 0:00:42]}  Bxf1 {[%clk 0:00:57]} 0-1


[Site "https://www.chess.com"]

[Event "Titled Tuesday Blitz March 15 Late 2022"]
[White "Kovanova, Baira"]
[Black "Hess, Robert"]
[WhiteFideId "4164083"]
[BlackFideId "2022036"]
[WhiteElo "2190"]
[BlackElo "2557"]
[Result "0-1"]
[Round "11"]
[TimeControl "180+1"]
[Date "2022.03.15"]
[WhiteClock "0:00:11"]
[BlackClock "0:00:06"]

1. e4 {[%clk 0:02:59]}  g6 {[%clk 0:03:00]} 2. d4 {[%clk 0:02:58]}  Bg7 {[%clk 0:02:59]} 3. Nf3 {[%clk 0:02:58]}  a6 {[%clk 0:03:00]} 4. Bd3 {[%clk 0:02:58]}  d6 {[%clk 0:03:00]} 5. c3 {[%clk 0:02:58]}  h6 {[%clk 0:03:00]} 6. O-O {[%clk 0:02:58]}  Nd7 {[%clk 0:03:01]} 7. Re1 {[%clk 0:02:58]}  e6 {[%clk 0:03:01]} 8. Nbd2 {[%clk 0:02:57]}  Ne7 {[%clk 0:03:02]} 9. Nf1 {[%clk 0:02:57]}  b6 {[%clk 0:03:02]} 10. Ng3 {[%clk 0:02:58]}  Bb7 {[%clk 0:03:03]} 11. Bc2 {[%clk 0:02:58]}  e5 {[%clk 0:02:58]} 12. Be3 {[%clk 0:02:51]}  Nc6 {[%clk 0:02:53]} 13. Qd2 {[%clk 0:02:50]}  Nf6 {[%clk 0:02:51]} 14. h3 {[%clk 0:02:48]}  Qe7 {[%clk 0:02:51]} 15. Rad1 {[%clk 0:02:40]}  O-O-O {[%clk 0:02:51]} 16. b4 {[%clk 0:02:39]}  Kb8 {[%clk 0:02:46]} 17. c4 {[%clk 0:02:16]}  exd4 {[%clk 0:02:27]} 18. Nxd4 {[%clk 0:02:13]}  Ne5 {[%clk 0:02:28]} 19. Qe2 {[%clk 0:01:54]}  Rhe8 {[%clk 0:02:06]} 20. c5 {[%clk 0:01:49]}  dxc5 {[%clk 0:01:59]} 21. bxc5 {[%clk 0:01:49]}  b5 {[%clk 0:01:38]} 22. a4 {[%clk 0:01:36]}  c6 {[%clk 0:01:36]} 23. axb5 {[%clk 0:01:21]}  axb5 {[%clk 0:01:26]} 24. Bb3 {[%clk 0:01:16]}  Nfd7 {[%clk 0:01:00]} 25. Nxb5 {[%clk 0:00:59]}  Nxc5 {[%clk 0:00:46]} 26. Nd4 {[%clk 0:00:34]}  Rxd4 {[%clk 0:00:32]} 27. Bxd4 {[%clk 0:00:27]}  Nxb3 {[%clk 0:00:31]} 28. Bb2 {[%clk 0:00:21]}  Qc5 {[%clk 0:00:22]} 29. Rb1 {[%clk 0:00:18]}  Nd4 {[%clk 0:00:10]} 30. Bxd4 {[%clk 0:00:17]}  Qxd4 {[%clk 0:00:11]} 31. Qa2 {[%clk 0:00:17]}  Qa7 {[%clk 0:00:04]} 32. Qb3 {[%clk 0:00:17]}  Rd8 {[%clk 0:00:04]} 33. Ra1 {[%clk 0:00:17]}  Qc5 {[%clk 0:00:04]} 34. Reb1 {[%clk 0:00:17]}  Rd7 {[%clk 0:00:04]} 35. Qa4 {[%clk 0:00:16]}  Kc8 {[%clk 0:00:03]} 36. Rc1 {[%clk 0:00:15]}  Qd4 {[%clk 0:00:03]} 37. Qb3 {[%clk 0:00:13]}  Nd3 {[%clk 0:00:02]} 38. Rc2 {[%clk 0:00:12]}  Qxa1+ {[%clk 0:00:02]} 39. Kh2 {[%clk 0:00:12]}  Qe5 {[%clk 0:00:02]} 40. Rd2 {[%clk 0:00:11]}  Nc5 {[%clk 0:00:03]} 41. Qc2 {[%clk 0:00:10]}  Rxd2 {[%clk 0:00:03]} 42. Qxd2 {[%clk 0:00:11]}  Nxe4 {[%clk 0:00:04]} 43. Qe2 {[%clk 0:00:09]}  Nxg3 {[%clk 0:00:04]} 44. Qxe5 {[%clk 0:00:10]}  Nf1+ {[%clk 0:00:04]} 45. Kg1 {[%clk 0:00:10]}  Bxe5 {[%clk 0:00:05]} 46. Kxf1 {[%clk 0:00:10]}  Ba6+ {[%clk 0:00:06]} 47. Ke1 {[%clk 0:00:10]}  c5 {[%clk 0:00:06]} 48. Kd1 {[%clk 0:00:11]}  Bf1 {[%clk 0:00:06]} 0-1


[Site "https://www.chess.com"]

[Event "Titled Tuesday Blitz March 15 Late 2022"]
[White "Kubicka, Anna"]
[Black "Meduri, Aakaash"]
[WhiteFideId "1152254"]
[BlackFideId "2032252"]
[WhiteElo "2000"]
[BlackElo "2096"]
[Result "1-0"]
[Round "11"]
[TimeControl "180+1"]
[Date "2022.03.16"]
[WhiteClock "0:00:16"]
[BlackClock "0:00:02"]

1. e4 {[%clk 0:03:00]}  c5 {[%clk 0:02:51]} 2. Ne2 {[%clk 0:03:00]}  Nc6 {[%clk 0:02:49]} 3. g3 {[%clk 0:03:01]}  h5 {[%clk 0:02:49]} 4. Bg2 {[%clk 0:02:58]}  h4 {[%clk 0:02:49]} 5. d4 {[%clk 0:02:53]}  cxd4 {[%clk 0:02:49]} 6. Nxd4 {[%clk 0:02:53]}  h3 {[%clk 0:02:37]} 7. Bf3 {[%clk 0:02:51]}  Nf6 {[%clk 0:02:32]} 8. Nc3 {[%clk 0:02:40]}  e5 {[%clk 0:01:56]} 9. Nf5 {[%clk 0:02:20]}  d6 {[%clk 0:01:51]} 10. Ne3 {[%clk 0:02:19]}  Be6 {[%clk 0:01:37]} 11. Ned5 {[%clk 0:02:04]}  Be7 {[%clk 0:01:24]} 12. Be3 {[%clk 0:02:01]}  Rc8 {[%clk 0:01:21]} 13. O-O {[%clk 0:01:54]}  Qd7 {[%clk 0:01:03]} 14. Qd2 {[%clk 0:01:42]}  Na5 {[%clk 0:00:50]} 15. b3 {[%clk 0:01:34]}  Nc6 {[%clk 0:00:50]} 16. Rad1 {[%clk 0:01:31]}  Rd8 {[%clk 0:00:44]} 17. a3 {[%clk 0:01:19]}  Ng4 {[%clk 0:00:40]} 18. Nb5 {[%clk 0:01:01]}  Nxe3 {[%clk 0:00:27]} 19. fxe3 {[%clk 0:01:02]}  O-O {[%clk 0:00:23]} 20. Qf2 {[%clk 0:00:32]}  a6 {[%clk 0:00:14]} 21. Nb6 {[%clk 0:00:31]}  axb5 {[%clk 0:00:10]} 22. Nxd7 {[%clk 0:00:31]}  Rxd7 {[%clk 0:00:11]} 23. Qe2 {[%clk 0:00:28]}  b4 {[%clk 0:00:07]} 24. a4 {[%clk 0:00:26]}  Rc8 {[%clk 0:00:07]} 25. Bg4 {[%clk 0:00:25]}  Nd8 {[%clk 0:00:04]} 26. Bxe6 {[%clk 0:00:23]}  Nxe6 {[%clk 0:00:05]} 27. Rf2 {[%clk 0:00:22]}  Rdc7 {[%clk 0:00:05]} 28. Rd2 {[%clk 0:00:22]}  Ng5 {[%clk 0:00:04]} 29. Qg4 {[%clk 0:00:20]}  Rc3 {[%clk 0:00:05]} 30. Rf5 {[%clk 0:00:19]}  f6 {[%clk 0:00:02]} 31. Rxg5 {[%clk 0:00:17]}  fxg5 {[%clk 0:00:03]} 32. Qxh3 {[%clk 0:00:17]}  Rf8 {[%clk 0:00:01]} 33. Qe6+ {[%clk 0:00:16]}  Rf7 {[%clk 0:00:02]} 34. Rf2 {[%clk 0:00:16]} 1-0


[Site "https://www.chess.com"]

[Event "Titled Tuesday Blitz March 15 Late 2022"]
[White "Kucuksari, Kaan"]
[Black "Kamsky, Gata"]
[WhiteFideId "6380166"]
[BlackFideId "2000024"]
[WhiteElo "2305"]
[BlackElo "2645"]
[Result "1/2-1/2"]
[Round "11"]
[TimeControl "180+1"]
[Date "2022.03.15"]
[WhiteClock "0:00:07"]
[BlackClock "0:01:05"]

1. d4 {[%clk 0:02:59]}  g6 {[%clk 0:02:58]} 2. c4 {[%clk 0:02:58]}  Bg7 {[%clk 0:02:57]} 3. Nf3 {[%clk 0:02:58]}  Nf6 {[%clk 0:02:56]} 4. g3 {[%clk 0:02:58]}  O-O {[%clk 0:02:56]} 5. Bg2 {[%clk 0:02:59]}  c6 {[%clk 0:02:56]} 6. O-O {[%clk 0:02:54]}  d5 {[%clk 0:02:56]} 7. b3 {[%clk 0:02:53]}  Ne4 {[%clk 0:02:51]} 8. Bb2 {[%clk 0:02:47]}  Bf5 {[%clk 0:02:51]} 9. Nbd2 {[%clk 0:02:46]}  Qa5 {[%clk 0:02:49]} 10. Nxe4 {[%clk 0:02:27]}  Bxe4 {[%clk 0:02:48]} 11. Qd2 {[%clk 0:02:18]}  Qxd2 {[%clk 0:02:45]} 12. Nxd2 {[%clk 0:02:19]}  Bxg2 {[%clk 0:02:45]} 13. Kxg2 {[%clk 0:02:18]}  Rd8 {[%clk 0:02:43]} 14. Rfd1 {[%clk 0:02:15]}  c5 {[%clk 0:02:40]} 15. cxd5 {[%clk 0:02:08]}  Rxd5 {[%clk 0:02:39]} 16. Nf3 {[%clk 0:01:11]}  Na6 {[%clk 0:02:23]} 17. Rd2 {[%clk 0:01:01]}  Rad8 {[%clk 0:02:20]} 18. Rad1 {[%clk 0:01:01]}  f5 {[%clk 0:02:14]} 19. Bc3 {[%clk 0:00:55]}  Bf6 {[%clk 0:01:57]} 20. dxc5 {[%clk 0:00:49]}  Rxd2 {[%clk 0:01:56]} 21. Rxd2 {[%clk 0:00:47]}  Rxd2 {[%clk 0:01:56]} 22. Bxd2 {[%clk 0:00:48]}  Nxc5 {[%clk 0:01:56]} 23. Be3 {[%clk 0:00:48]}  Ne4 {[%clk 0:01:57]} 24. Bxa7 {[%clk 0:00:47]}  Nc3 {[%clk 0:01:57]} 25. Bd4 {[%clk 0:00:42]}  Nxa2 {[%clk 0:01:42]} 26. Bxf6 {[%clk 0:00:41]}  exf6 {[%clk 0:01:43]} 27. Nd4 {[%clk 0:00:40]}  Nc3 {[%clk 0:01:41]} 28. Kf3 {[%clk 0:00:36]}  Kf7 {[%clk 0:01:40]} 29. Ke3 {[%clk 0:00:36]}  Nd1+ {[%clk 0:01:40]} 30. Kf3 {[%clk 0:00:36]}  Ke7 {[%clk 0:01:40]} 31. e3 {[%clk 0:00:33]}  Nc3 {[%clk 0:01:39]} 32. g4 {[%clk 0:00:17]}  fxg4+ {[%clk 0:01:37]} 33. Kxg4 {[%clk 0:00:18]}  Kd6 {[%clk 0:01:29]} 34. h4 {[%clk 0:00:18]}  Kc5 {[%clk 0:01:27]} 35. h5 {[%clk 0:00:18]}  gxh5+ {[%clk 0:01:22]} 36. Kxh5 {[%clk 0:00:18]}  Nd1 {[%clk 0:01:22]} 37. Kh6 {[%clk 0:00:11]}  Nxf2 {[%clk 0:01:22]} 38. Kxh7 {[%clk 0:00:11]}  Ng4 {[%clk 0:01:22]} 39. Kg6 {[%clk 0:00:11]}  Nxe3 {[%clk 0:01:21]} 40. Ne6+ {[%clk 0:00:11]}  Kb4 {[%clk 0:01:16]} 41. Kxf6 {[%clk 0:00:12]}  b6 {[%clk 0:01:10]} 42. Nc7 {[%clk 0:00:07]}  Kxb3 {[%clk 0:01:08]} 43. Na8 {[%clk 0:00:07]}  Nd5+ {[%clk 0:01:05]} 44. Ke5 {[%clk 0:00:07]}  Kc4 {[%clk 0:01:05]} 45. Nxb6+ {[%clk 0:00:07]} 1/2-1/2


[Site "https://www.chess.com"]

[Event "Titled Tuesday Blitz March 15 Late 2022"]
[White "Kujawski, Adam"]
[Black "Mikhalsky, Vladimir"]
[WhiteFideId "1100920"]
[BlackFideId "14144352"]
[WhiteElo "2053"]
[BlackElo "2301"]
[Result "1-0"]
[Round "11"]
[TimeControl "180+1"]
[Date "2022.03.16"]
[WhiteClock "0:00:05"]
[BlackClock "0:00:01"]

1. e4 {[%clk 0:03:00]}  g6 {[%clk 0:02:59]} 2. d4 {[%clk 0:03:00]}  Bg7 {[%clk 0:02:59]} 3. Nc3 {[%clk 0:02:58]}  d6 {[%clk 0:02:59]} 4. h3 {[%clk 0:02:57]}  Nd7 {[%clk 0:02:55]} 5. Nf3 {[%clk 0:02:57]}  e5 {[%clk 0:02:53]} 6. Bc4 {[%clk 0:02:54]}  Ngf6 {[%clk 0:02:48]} 7. dxe5 {[%clk 0:02:53]}  dxe5 {[%clk 0:02:47]} 8. Be3 {[%clk 0:02:52]}  O-O {[%clk 0:02:42]} 9. Qd2 {[%clk 0:02:52]}  Nb6 {[%clk 0:02:37]} 10. Bb3 {[%clk 0:02:47]}  Qxd2+ {[%clk 0:02:35]} 11. Nxd2 {[%clk 0:02:47]}  c6 {[%clk 0:02:32]} 12. O-O-O {[%clk 0:02:42]}  Nh5 {[%clk 0:02:31]} 13. Nc4 {[%clk 0:02:36]}  Nxc4 {[%clk 0:02:25]} 14. Bxc4 {[%clk 0:02:36]}  Nf4 {[%clk 0:02:24]} 15. Rhg1 {[%clk 0:02:22]}  Be6 {[%clk 0:02:18]} 16. Bxe6 {[%clk 0:02:19]}  Nxe6 {[%clk 0:02:17]} 17. Rd7 {[%clk 0:02:11]}  b6 {[%clk 0:02:17]} 18. g3 {[%clk 0:02:08]}  Nd4 {[%clk 0:02:15]} 19. Rd1 {[%clk 0:01:46]}  Rfd8 {[%clk 0:02:14]} 20. Rxd8+ {[%clk 0:01:39]}  Rxd8 {[%clk 0:02:13]} 21. Rd2 {[%clk 0:01:34]}  Kf8 {[%clk 0:02:09]} 22. Ne2 {[%clk 0:01:33]}  Ke7 {[%clk 0:02:01]} 23. c3 {[%clk 0:01:30]}  Nf3 {[%clk 0:01:56]} 24. Rxd8 {[%clk 0:01:29]}  Kxd8 {[%clk 0:01:55]} 25. a4 {[%clk 0:01:17]}  f5 {[%clk 0:01:49]} 26. a5 {[%clk 0:01:11]}  Kc7 {[%clk 0:01:47]} 27. c4 {[%clk 0:00:47]}  Bf8 {[%clk 0:01:27]} 28. Kc2 {[%clk 0:00:40]}  Bb4 {[%clk 0:01:16]} 29. axb6+ {[%clk 0:00:39]}  axb6 {[%clk 0:01:16]} 30. Nc1 {[%clk 0:00:24]}  Ng1 {[%clk 0:01:06]} 31. h4 {[%clk 0:00:23]}  Bd6 {[%clk 0:01:02]} 32. Kd3 {[%clk 0:00:17]}  f4 {[%clk 0:01:00]} 33. Bd2 {[%clk 0:00:16]}  Nh3 {[%clk 0:00:39]} 34. gxf4 {[%clk 0:00:12]}  Nxf2+ {[%clk 0:00:28]} 35. Ke3 {[%clk 0:00:11]}  Ng4+ {[%clk 0:00:18]} 36. Kf3 {[%clk 0:00:11]}  h5 {[%clk 0:00:17]} 37. f5 {[%clk 0:00:09]}  gxf5 {[%clk 0:00:16]} 38. exf5 {[%clk 0:00:10]}  Kd7 {[%clk 0:00:15]} 39. Ne2 {[%clk 0:00:09]}  Nf6 {[%clk 0:00:12]} 40. Ng3 {[%clk 0:00:08]}  Ke7 {[%clk 0:00:09]} 41. Bg5 {[%clk 0:00:08]}  Kf7 {[%clk 0:00:08]} 42. Ne4 {[%clk 0:00:08]}  Nxe4 {[%clk 0:00:07]} 43. Kxe4 {[%clk 0:00:08]}  Bc7 {[%clk 0:00:08]} 44. b3 {[%clk 0:00:07]}  Bd6 {[%clk 0:00:08]} 45. Be3 {[%clk 0:00:07]}  Bc7 {[%clk 0:00:07]} 46. Bf2 {[%clk 0:00:07]}  Kf6 {[%clk 0:00:07]} 47. Bg3 {[%clk 0:00:07]}  b5 {[%clk 0:00:06]} 48. cxb5 {[%clk 0:00:06]}  cxb5 {[%clk 0:00:06]} 49. Bh2 {[%clk 0:00:07]}  Bb8 {[%clk 0:00:07]} 50. Bg3 {[%clk 0:00:07]}  Bc7 {[%clk 0:00:07]} 51. Be1 {[%clk 0:00:07]}  Bb8 {[%clk 0:00:07]} 52. Bd2 {[%clk 0:00:07]}  Bc7 {[%clk 0:00:07]} 53. Bg5+ {[%clk 0:00:07]}  Kf7 {[%clk 0:00:07]} 54. Kd5 {[%clk 0:00:07]}  Bb8 {[%clk 0:00:06]} 55. Bd8 {[%clk 0:00:07]}  Ke8 {[%clk 0:00:02]} 56. Bb6 {[%clk 0:00:06]}  Kd7 {[%clk 0:00:02]} 57. Bf2 {[%clk 0:00:05]}  Bc7 {[%clk 0:00:01]} 58. Bg3 {[%clk 0:00:05]} 1-0


[Site "https://www.chess.com"]